bitfinex/quotes_BTCUSD_20250618
["timestamp","ask_amount","ask_price","bid_price","bid_amount"]
[1750243217452,0.57877279,104540.0,104530.0,1.50562861]
[1750243220495,0.57877279,104540.0,104530.0,1.58062861]
[1750243220709,0.57877279,104540.0,104530.0,1.81030861]
[1750243221002,0.57877279,104540.0,104530.0,1.59263392]
[1750243221214,0.57877279,104540.0,104530.0,1.60466861]
[1750243221422,0.57877279,104540.0,104530.0,1.73606861]
[1750243222066,0.57877279,104540.0,104530.0,1.78606861]
[1750243222302,0.57877279,104540.0,104530.0,1.73606861]
[1750243222512,0.55200708,104540.0,104530.0,2.02716861]
[1750243223349,0.55200708,104540.0,104530.0,1.91452861]
[1750243223586,0.55200708,104540.0,104530.0,2.02760861]
[1750243223801,0.55200708,104540.0,104530.0,2.07760861]
[1750243227767,0.55200708,104540.0,104530.0,2.06306776]
[1750243227988,0.55200708,104540.0,104530.0,2.07760861]
[1750243231400,0.55200708,104540.0,104530.0,2.06306776]
[1750243231640,0.55200708,104540.0,104530.0,2.07760861]
[1750243232581,0.51468434,104540.0,104530.0,2.07720861]
[1750243233454,0.51468434,104540.0,104530.0,0.81777307]
[1750243233698,0.51468434,104540.0,104530.0,0.62211307]
[1750243234188,0.51468434,104540.0,104530.0,0.64788861]
[1750243234412,0.51468434,104540.0,104530.0,0.88602861]
[1750243234634,0.51468434,104540.0,104530.0,0.91922861]
[1750243234857,0.51468434,104540.0,104530.0,0.91918861]
[1750243235557,0.51468434,104540.0,104530.0,0.85428861]
[1750243235782,0.51468434,104540.0,104530.0,0.69164861]
[1750243236014,0.51468434,104540.0,104530.0,0.85428861]
[1750243236236,0.51468434,104540.0,104530.0,0.63653392]
[1750243236500,0.51468434,104540.0,104530.0,0.52397392]
[1750243236742,0.51468434,104540.0,104530.0,0.65788392]
[1750243238106,0.51468434,104540.0,104530.0,0.72088392]
[1750243238330,0.51468434,104540.0,104530.0,0.93855861]
[1750243240144,0.84782746,104540.0,104530.0,0.33694307]
[1750243240398,0.57868434,104540.0,104530.0,0.65461776]
[1750243240632,0.51468434,104540.0,104530.0,0.93887861]
[1750243240927,0.51468434,104540.0,104530.0,0.55824392]
[1750243241143,0.50268434,104540.0,104530.0,0.44948392]
[1750243241358,0.50368434,104540.0,104530.0,0.61132392]
[1750243241574,0.57108434,104540.0,104530.0,0.61128392]
[1750243241787,0.57108434,104540.0,104530.0,0.40448392]
[1750243241995,0.57108434,104540.0,104530.0,0.61128392]
[1750243243496,0.57108434,104540.0,104530.0,0.66128392]
[1750243243703,0.53788434,104540.0,104530.0,0.66128392]
[1750243243927,0.50468434,104540.0,104530.0,0.66128392]
[1750243244597,0.50468434,104540.0,104530.0,0.72328392]
[1750243245257,0.50468434,104540.0,104530.0,0.94095861]
[1750243246602,0.50468434,104540.0,104530.0,0.72328392]
[1750243246839,0.50468434,104540.0,104530.0,0.94095861]
[1750243247723,0.48913103,104540.0,104530.0,0.94095861]
[1750243248430,0.48913103,104540.0,104530.0,0.97328392]
[1750243248647,0.48913103,104540.0,104530.0,1.19095861]
[1750243248869,0.48913103,104540.0,104530.0,1.21968461]
[1750243249082,0.48913103,104540.0,104530.0,1.51078461]
[1750243249968,0.48913103,104540.0,104530.0,1.29334992]
[1750243250183,0.48913103,104540.0,104530.0,1.51102461]
[1750243253502,0.48913103,104540.0,104530.0,1.46102461]
[1750243253713,0.48913103,104540.0,104530.0,0.99318992]
[1750243254329,0.48913103,104540.0,104530.0,0.78630992]
[1750243254541,0.48913103,104540.0,104530.0,0.99310992]
[1750243256215,0.48913103,104540.0,104530.0,1.04310992]
[1750243256407,0.48913103,104540.0,104530.0,0.99310992]
[1750243256631,0.48913103,104540.0,104530.0,1.21078461]
[1750243257265,0.48913103,104540.0,104530.0,0.99310992]
[1750243257865,0.47357832,104540.0,104530.0,0.99310992]
[1750243258709,0.47357832,104540.0,104530.0,0.72430992]
[1750243258881,0.47357832,104540.0,104530.0,0.93074992]
[1750243259082,0.47357832,104540.0,104530.0,0.73998392]
[1750243259285,0.69125301,104540.0,104530.0,0.90202392]
[1750243259545,0.69125301,104540.0,104530.0,0.64558392]
[1750243259707,0.75435301,104540.0,104530.0,0.68998392]
[1750243259906,0.53667832,104540.0,104530.0,0.72544307]
[1750243260178,0.75435301,104540.0,104530.0,0.88748307]
[1750243260581,0.75435301,104540.0,104530.0,0.90202392]
[1750243260985,0.75435301,104540.0,104530.0,0.61092392]
[1750243262620,0.53667832,104540.0,104530.0,0.61092392]
[1750243262827,0.50607832,104540.0,104530.0,0.61092392]
[1750243263029,0.72375301,104540.0,104530.0,0.61092392]
[1750243263202,0.72375301,104540.0,104530.0,0.66092392]
[1750243263403,0.72375301,104540.0,104530.0,0.61092392]
[1750243263615,0.47357832,104540.0,104530.0,0.66092392]
[1750243263825,0.47357832,104540.0,104530.0,0.69152392]
[1750243264030,0.47357832,104540.0,104530.0,0.66092392]
[1750243264866,0.69125301,104540.0,104530.0,0.66092392]
[1750243266533,0.69125301,104540.0,104530.0,0.61092392]
[1750243266766,0.69125301,104540.0,104530.0,0.66092392]
[1750243267005,0.47357832,104540.0,104530.0,0.73717612]
[1750243267237,0.47357832,104540.0,104530.0,0.69322392]
[1750243267453,0.69125301,104540.0,104530.0,0.61092392]
[1750243267880,0.69125301,104540.0,104530.0,0.66092392]
[1750243268593,0.69125301,104540.0,104530.0,0.61092392]
[1750243268812,0.69125301,104540.0,104530.0,0.66092392]
[1750243269360,0.69125301,104540.0,104530.0,0.69102392]
[1750243269571,0.47357832,104540.0,104530.0,0.72322392]
[1750243271360,0.47357832,104540.0,104530.0,0.67322392]
[1750243271577,0.47357832,104540.0,104530.0,0.72322392]
[1750243272009,0.47357832,104540.0,104530.0,0.72074392]
[1750243274006,0.47357832,104540.0,104530.0,0.60844392]
[1750243274438,0.69125301,104540.0,104530.0,0.60844392]
[1750243274662,0.69125301,104540.0,104530.0,0.65844392]
[1750243276172,0.47357832,104540.0,104530.0,0.72184392]
[1750243278864,0.47357832,104540.0,104530.0,1.01294392]
[1750243279556,0.47357832,104540.0,104530.0,0.96294392]
[1750243279818,0.47357832,104540.0,104530.0,1.01294392]
[1750243280273,0.47357832,104540.0,104530.0,1.01366392]
[1750243280494,0.47357832,104540.0,104530.0,0.96358392]
[1750243280717,0.47357832,104540.0,104530.0,1.01358392]
[1750243280933,0.47357832,104540.0,104530.0,1.04231392]
[1750243281599,0.47357832,104540.0,104530.0,0.99231392]
[1750243281872,0.47357832,104540.0,104530.0,1.04231392]
[1750243282631,0.47357832,104540.0,104530.0,0.87955392]
[1750243282851,0.47357832,104540.0,104530.0,1.04219392]
[1750243283309,0.47357832,104540.0,104530.0,1.02765307]
[1750243283771,0.47357832,104540.0,104530.0,1.04219392]
[1750243285990,0.45802424,104540.0,104530.0,1.04219392]
[1750243286644,0.45802424,104540.0,104530.0,1.19219392]
[1750243289118,0.45802424,104540.0,104530.0,1.19211392]
[1750243289557,0.45802424,104540.0,104530.0,1.19215392]
[1750243289982,0.67569893,104540.0,104530.0,0.64413392]
[1750243290200,0.67569893,104540.0,104530.0,0.51293392]
[1750243290452,0.67569893,104540.0,104530.0,0.71989392]
[1750243290660,0.67569893,104540.0,104530.0,0.75109392]
[1750243292480,0.67569893,104540.0,104530.0,0.54413392]
[1750243292708,0.67569893,104540.0,104530.0,0.75097392]
[1750243293778,0.67569893,104540.0,104530.0,0.70097392]
[1750243293992,0.67569893,104540.0,104530.0,0.75097392]
[1750243294423,0.67569893,104540.0,104530.0,0.70097392]
[1750243294631,0.67569893,104540.0,104530.0,0.75097392]
[1750243295734,0.45802424,104540.0,104530.0,0.75097392]
[1750243295938,0.67569893,104540.0,104530.0,0.75097392]
[1750243296148,0.45802424,104540.0,104530.0,0.75097392]
[1750243296364,0.67569893,104540.0,104530.0,0.75097392]
[1750243299307,0.67569893,104540.0,104530.0,0.70097392]
[1750243299508,0.67569893,104540.0,104530.0,0.75097392]
[1750243299927,0.67569893,104540.0,104530.0,0.70097392]
[1750243300144,0.67569893,104540.0,104530.0,0.75097392]
[1750243301192,0.45802424,104540.0,104530.0,0.75097392]
[1750243301416,0.67569893,104540.0,104530.0,0.75097392]
[1750243302050,0.44246993,104540.0,104530.0,0.75097392]
[1750243303649,0.66014462,104540.0,104530.0,0.75097392]
[1750243304445,0.44246993,104540.0,104530.0,0.75097392]
[1750243304688,0.66014462,104540.0,104530.0,0.75097392]
[1750243305549,0.66014462,104540.0,104530.0,0.70097392]
[1750243305762,0.66014462,104540.0,104530.0,0.75097392]
[1750243306544,0.66014462,104540.0,104530.0,0.53845392]
[1750243306755,0.66014462,104540.0,104530.0,0.75049392]
[1750243307801,0.66014462,104540.0,104530.0,0.46293392]
[1750243308004,0.66014462,104540.0,104530.0,0.71885392]
[1750243308215,0.66002442,104540.0,104530.0,0.71885392]
[1750243308423,0.66002442,104540.0,104530.0,0.55681392]
[1750243308652,0.66002442,104540.0,104530.0,0.71885392]
[1750243308874,0.66002442,104540.0,104530.0,0.68665392]
[1750243309553,0.66002442,104540.0,104530.0,0.63665392]
[1750243309767,0.66002442,104540.0,104530.0,0.68665392]
[1750243309976,0.66002442,104540.0,104530.0,0.71885392]
[1750243310404,0.66002442,104540.0,104530.0,0.51293392]
[1750243310671,0.66002442,104540.0,104530.0,0.71885392]
[1750243311123,0.66002442,104540.0,104530.0,0.74915392]
[1750243312802,0.66002442,104540.0,104530.0,0.69915392]
[1750243313021,0.66002442,104540.0,104530.0,0.74915392]
[1750243313665,0.66002442,104540.0,104530.0,0.69915392]
[1750243313869,0.66002442,104540.0,104530.0,0.74915392]
[1750243314510,0.66002442,104540.0,104530.0,0.71885392]
[1750243314926,0.66002442,104540.0,104530.0,0.74915392]
[1750243315393,0.44234973,104540.0,104530.0,0.74915392]
[1750243315619,0.66002442,104540.0,104530.0,0.69915392]
[1750243315839,0.66002442,104540.0,104530.0,0.74915392]
[1750243316525,0.66002442,104540.0,104530.0,0.69915392]
[1750243316749,0.44234973,104540.0,104530.0,0.69915392]
[1750243316994,0.65992756,104540.0,104530.0,0.69915392]
[1750243317201,0.65992756,104540.0,104530.0,0.74915392]
[1750243318311,0.65992756,104540.0,104530.0,0.69915392]
[1750243318518,0.65992756,104540.0,104530.0,0.74915392]
[1750243319406,0.65992756,104540.0,104530.0,0.69911392]
[1750243320276,0.65992756,104540.0,104530.0,0.53711392]
[1750243320510,0.65992756,104540.0,104530.0,0.55788392]
[1750243320511,1.0001153,104540.0,104530.0,0.55788392]
[1750243320723,0.94010539,104540.0,104530.0,0.55788392]
[1750243321169,0.90750539,104540.0,104530.0,0.39588392]
[1750243321394,0.90750539,104540.0,104530.0,0.35200392]
[1750243321629,0.44234973,104540.0,104530.0,0.73318175]
[1750243321876,0.44234973,104540.0,104530.0,0.93906175]
[1750243322118,0.42679562,104540.0,104530.0,0.93906175]
[1750243322803,0.42679562,104540.0,104530.0,0.88906175]
[1750243323068,0.42679562,104540.0,104530.0,0.72148392]
[1750243325175,0.42679562,104540.0,104530.0,0.67148392]
[1750243326109,0.42679562,104540.0,104530.0,0.96258392]
[1750243327280,0.42679562,104540.0,104530.0,1.18012181]
[1750243327506,0.42679562,104540.0,104530.0,2.04637401]
[1750243327729,0.42679562,104540.0,104530.0,1.75527401]
[1750243327939,0.39354091,104540.0,104530.0,1.75527401]
[1750243328411,0.39254091,104540.0,104530.0,1.75227401]
[1750243328627,0.39254091,104540.0,104530.0,1.75027401]
[1750243328628,0.39154091,104540.0,104530.0,1.75027401]
[1750243328840,0.40454091,104540.0,104530.0,1.75227401]
[1750243329053,0.39754091,104540.0,104530.0,1.75127401]
[1750243329267,0.39654091,104540.0,104530.0,1.75127401]
[1750243329711,0.40054091,104540.0,104530.0,1.75227401]
[1750243329925,0.40054091,104540.0,104530.0,1.67602181]
[1750243330145,0.40054091,104540.0,104530.0,1.62598181]
[1750243330357,0.40054091,104540.0,104530.0,1.67598181]
[1750243331857,0.40054091,104540.0,104530.0,1.96708181]
[1750243332330,0.40054091,104540.0,104530.0,1.99580381]
[1750243338423,0.40054091,104540.0,104530.0,1.77826592]
[1750243338661,0.40054091,104540.0,104530.0,1.99580381]
[1750243339551,0.40054091,104540.0,104530.0,1.49886381]
[1750243339988,0.40054091,104540.0,104530.0,1.70454381]
[1750243343689,0.40054091,104540.0,104530.0,1.99564381]
[1750243347053,0.40054091,104540.0,104530.0,1.78996381]
[1750243347270,0.40054091,104540.0,104530.0,1.99560381]
[1750243348372,0.40054091,104540.0,104530.0,1.94560381]
[1750243348811,0.40054091,104540.0,104530.0,1.99560381]
[1750243349269,0.40054091,104540.0,104530.0,2.09640381]
[1750243349494,0.40054091,104540.0,104530.0,1.94560381]
[1750243349707,0.40054091,104540.0,104530.0,1.99560381]
[1750243350759,0.40054091,104540.0,104530.0,1.94560381]
[1750243350963,0.40054091,104540.0,104530.0,1.99560381]
[1750243351174,0.36728641,104540.0,104530.0,1.99560381]
[1750243351400,0.36728641,104540.0,104530.0,1.77806592]
[1750243351643,0.36728641,104540.0,104530.0,1.99560381]
[1750243352927,0.36728641,104540.0,104530.0,1.57237792]
[1750243353147,0.36728641,104540.0,104530.0,1.60769792]
[1750243353368,0.36728641,104540.0,104530.0,1.82523581]
[1750243354464,0.36728641,104540.0,104530.0,1.77523581]
[1750243354673,0.36728641,104540.0,104530.0,1.82523581]
[1750243355519,0.36728641,104540.0,104530.0,1.82519581]
[1750243356655,0.36728641,104540.0,104530.0,1.97519581]
[1750243361199,0.33403312,104540.0,104530.0,1.97519581]
[1750243361624,0.33403312,104540.0,104530.0,2.46679581]
[1750243362479,0.33403312,104540.0,104530.0,2.26119581]
[1750243362686,0.33403312,104540.0,104530.0,2.18467707]
[1750243362904,0.33403312,104540.0,104530.0,2.26675581]
[1750243363115,0.33403312,104540.0,104530.0,2.56675581]
[1750243364156,0.33403312,104540.0,104530.0,2.36119581]
[1750243364374,0.33403312,104540.0,104530.0,2.56675581]
[1750243365023,0.33403312,104540.0,104530.0,2.51675581]
[1750243365274,0.33403312,104540.0,104530.0,2.56675581]
[1750243366562,0.33403312,104540.0,104530.0,2.51675581]
[1750243366773,0.33403312,104540.0,104530.0,2.56675581]
[1750243367189,0.33403312,104540.0,104530.0,2.51675581]
[1750243367398,0.33403312,104540.0,104530.0,2.02515581]
[1750243367608,0.33403312,104540.0,104530.0,1.60205792]
[1750243368100,0.33403312,104540.0,104530.0,2.02563581]
[1750243368310,0.33403312,104540.0,104530.0,2.07563581]
[1750243368724,0.33403312,104540.0,104530.0,2.02563581]
[1750243368938,0.33403312,104540.0,104530.0,2.07563581]
[1750243369150,0.33403312,104540.0,104530.0,2.02563581]
[1750243370299,0.33403312,104540.0,104530.0,2.07563581]
[1750243370500,0.33403312,104540.0,104530.0,2.02563581]
[1750243371137,0.28507749,104540.0,104530.0,2.02563581]
[1750243371570,0.28507749,104540.0,104530.0,2.07563581]
[1750243372213,0.28507749,104540.0,104530.0,2.02563581]
[1750243372639,0.28507749,104540.0,104530.0,1.80809792]
[1750243372849,0.28507749,104540.0,104530.0,2.02563581]
[1750243373489,0.28507749,104540.0,104530.0,1.82019581]
[1750243373702,0.28507749,104540.0,104530.0,2.02563581]
[1750243374841,0.009,104540.0,104530.0,2.02563581]
[1750243376089,0.009,104540.0,104530.0,1.77559581]
[1750243377869,0.009,104540.0,104530.0,1.55805792]
[1750243378280,0.009,104540.0,104530.0,1.52635792]
[1750243378959,0.009,104540.0,104530.0,1.55705792]
[1750243379475,0.009,104540.0,104530.0,1.77459581]
[1750243381634,0.009,104540.0,104530.0,1.60705792]
[1750243381843,0.009,104540.0,104530.0,1.82459581]
[1750243382513,0.009,104540.0,104530.0,1.60701792]
[1750243382716,0.009,104540.0,104530.0,1.82455581]
[1750243384705,0.27607749,104550.0,104540.0,0.05]
[1750243384900,0.27612496,104550.0,104540.0,0.87766186]
[1750243385110,0.27612496,104550.0,104540.0,1.12527086]
[1750243385316,0.27612496,104550.0,104540.0,1.15399386]
[1750243385983,0.27912496,104550.0,104540.0,1.16499386]
[1750243387083,0.27912496,104550.0,104540.0,1.31499386]
[1750243387292,0.27912496,104550.0,104540.0,1.81730062]
[1750243389446,0.27912496,104550.0,104540.0,1.83646062]
[1750243389710,0.27912496,104550.0,104540.0,2.10840062]
[1750243390860,0.27812496,104550.0,104540.0,2.10440062]
[1750243391107,0.28112496,104550.0,104540.0,2.10540062]
[1750243391346,0.27912496,104550.0,104540.0,2.09840062]
[1750243391822,0.28612496,104550.0,104540.0,2.09940062]
[1750243392740,0.26435635,104550.0,104540.0,2.09940062]
[1750243397059,0.26435635,104550.0,104540.0,2.04940062]
[1750243397313,0.26435635,104550.0,104540.0,1.88186273]
[1750243397531,0.26435635,104550.0,104540.0,1.12022273]
[1750243397752,0.26435635,104550.0,104540.0,1.99300062]
[1750243399244,0.26435635,104550.0,104540.0,1.99288062]
[1750243402524,0.01004747,104550.0,104540.0,1.99288062]
[1750243403396,0.01004747,104550.0,104540.0,2.22252062]
[1750243403999,0.01004747,104550.0,104540.0,2.22248062]
[1750243404220,0.00281558,104550.0,104540.0,2.22248062]
[1750243405369,0.00281558,104550.0,104540.0,2.22000062]
[1750243407483,0.00281558,104550.0,104540.0,1.95246273]
[1750243407712,0.28415347,104550.0,104540.0,1.16134273]
[1750243407933,0.28415347,104550.0,104540.0,0.60201512]
[1750243408615,0.28415347,104550.0,104540.0,0.34697512]
[1750243408891,0.50169136,104550.0,104540.0,0.39697512]
[1750243409103,0.28415347,104550.0,104540.0,0.44057512]
[1750243409314,0.28415347,104550.0,104540.0,0.55201512]
[1750243409738,0.28415347,104550.0,104540.0,0.56555597]
[1750243409956,0.28415347,104550.0,104540.0,0.52229212]
[1750243409957,0.50169136,104550.0,104540.0,0.52229212]
[1750243410169,0.50269136,104550.0,104540.0,0.52829212]
[1750243410380,0.49987578,104550.0,104540.0,0.36585212]
[1750243410605,0.54529616,104550.0,104540.0,0.54183297]
[1750243410837,0.54729616,104550.0,104540.0,0.55283297]
[1750243411275,0.50187578,104550.0,104540.0,0.55283297]
[1750243411725,0.51323248,104550.0,104540.0,0.39139297]
[1750243411940,0.51323248,104550.0,104540.0,0.55283297]
[1750243412411,0.51323248,104550.0,104540.0,0.33325212]
[1750243412877,0.51323248,104550.0,104540.0,0.49469212]
[1750243413086,0.50087578,104550.0,104540.0,0.48869212]
[1750243413514,0.49887578,104550.0,104540.0,0.47869212]
[1750243413932,0.49987578,104550.0,104540.0,0.48169212]
[1750243414144,0.49987578,104550.0,104540.0,0.48269212]
[1750243414740,0.51126953,104550.0,104540.0,0.48269212]
[1750243417911,0.49987578,104550.0,104540.0,0.48269212]
[1750243418968,0.51143695,104550.0,104540.0,0.48269212]
[1750243420074,0.07636117,104550.0,104540.0,0.48269212]
[1750243420287,0.51383065,104550.0,104540.0,0.48269212]
[1750243420513,0.51143695,104550.0,104540.0,0.48269212]
[1750243422908,0.58801153,104550.0,104540.0,0.48269212]
[1750243423121,0.51143695,104550.0,104540.0,0.48269212]
[1750243425734,0.85143695,104550.0,104540.0,0.32125212]
[1750243425947,0.85143695,104550.0,104540.0,0.48265212]
[1750243426160,0.85143695,104550.0,104540.0,0.32125212]
[1750243426373,0.85143695,104550.0,104540.0,0.48265212]
[1750243426597,0.85143695,104550.0,104540.0,0.32125212]
[1750243426804,0.95715023,104550.0,104540.0,0.48265212]
[1750243427013,0.94758617,104550.0,104540.0,0.48265212]
[1750243427225,0.95715014,104550.0,104540.0,0.48265212]
[1750243427421,0.94758617,104550.0,104540.0,0.48265212]
[1750243427693,0.95715014,104550.0,104540.0,0.48265212]
[1750243428152,0.94758617,104550.0,104540.0,0.48265212]
[1750243428362,0.85143695,104550.0,104540.0,0.48265212]
[1750243429929,1.0785389,104550.0,104540.0,0.48265212]
[1750243430152,1.09766758,104550.0,104540.0,0.48265212]
[1750243430383,1.1072321,104550.0,104540.0,0.48265212]
[1750243430603,1.09766749,104550.0,104540.0,0.48265212]
[1750243430866,0.4035,104540.0,104530.0,0.3037161]
[1750243431075,0.85770592,104540.0,104530.0,0.4651161]
[1750243431286,0.84814076,104540.0,104530.0,0.4651161]
[1750243431468,0.84814076,104540.0,104530.0,0.4650761]
[1750243431995,0.85770592,104540.0,104530.0,0.4650761]
[1750243432173,0.95385514,104540.0,104530.0,0.4670761]
[1750243432418,0.94428998,104540.0,104530.0,0.3057161]
[1750243432631,0.9634204,104540.0,104530.0,0.4670761]
[1750243433065,0.97398583,104540.0,104530.0,0.4710761]
[1750243433487,0.87783661,104540.0,104530.0,0.4710761]
[1750243433715,0.87783652,104540.0,104530.0,0.4710761]
[1750243433924,0.83957578,104540.0,104530.0,0.4710761]
[1750243434756,0.62203789,104540.0,104530.0,0.4710761]
[1750243438490,0.4045,104540.0,104530.0,0.4710761]
[1750243438701,0.62203789,104540.0,104530.0,0.4710761]
[1750243439518,0.4045,104540.0,104530.0,0.4710761]
[1750243439727,0.25113789,104540.0,104530.0,0.4710761]
[1750243439927,0.21853789,104540.0,104530.0,0.4710761]
[1750243442580,0.21853789,104540.0,104530.0,0.4710361]
[1750243443363,0.21853789,104540.0,104530.0,0.5012361]
[1750243443719,0.21853789,104540.0,104530.0,0.5325361]
[1750243444125,0.55853789,104540.0,104530.0,0.5325361]
[1750243448259,0.341,104540.0,104530.0,0.5325361]
[1750243448460,0.55853789,104540.0,104530.0,0.5325361]
[1750243456177,0.55853789,104540.0,104530.0,0.3712161]
[1750243456380,0.63825799,104540.0,104530.0,0.5145161]
[1750243457139,0.55853789,104540.0,104530.0,0.5760161]
[1750243457523,0.55853789,104540.0,104530.0,0.5324961]
[1750243462328,0.55853789,104540.0,104530.0,0.3712161]
[1750243462551,0.55853789,104540.0,104530.0,0.5324961]
[1750243472428,0.55853789,104540.0,104530.0,0.5324561]
[1750243473266,0.55613789,104540.0,104530.0,0.5324561]
[1750243475685,0.55613789,104540.0,104530.0,0.4709561]
[1750243476416,0.55613789,104540.0,104530.0,0.3097161]
[1750243476625,0.55613789,104540.0,104530.0,0.4709561]
[1750243477285,0.55613789,104540.0,104530.0,0.5031561]
[1750243478148,0.55613789,104540.0,104530.0,0.5354561]
[1750243480460,0.3386,104540.0,104530.0,0.5354561]
[1750243480690,0.55613789,104540.0,104530.0,0.5354561]
[1750243482983,0.3386,104540.0,104530.0,0.3742161]
[1750243483214,0.22909906,104550.0,104540.0,0.22001036]
[1750243483460,0.47184677,104560.0,104550.0,0.21998933]
[1750243483698,0.81184677,104560.0,104550.0,0.53860503]
[1750243485079,0.82330648,104560.0,104550.0,0.53860503]
[1750243485821,0.82530648,104560.0,104550.0,0.53960503]
[1750243486282,0.82530648,104560.0,104550.0,0.53860503]
[1750243486499,0.82630648,104560.0,104550.0,0.54060503]
[1750243486705,0.82830648,104560.0,104550.0,0.54060503]
[1750243487135,0.82630648,104560.0,104550.0,0.54060503]
[1750243487757,0.82630648,104560.0,104550.0,0.37940503]
[1750243487969,0.90893713,104560.0,104550.0,0.47986503]
[1750243488854,0.82630648,104560.0,104550.0,0.47986503]
[1750243489276,0.8263754,104560.0,104550.0,0.51196503]
[1750243489484,0.8263754,104560.0,104550.0,0.54346503]
[1750243490324,0.82630648,104560.0,104550.0,0.54339611]
[1750243492895,0.60876859,104560.0,104550.0,0.54339611]
[1750243493102,0.82630648,104560.0,104550.0,0.54339611]
[1750243499382,0.63922635,104560.0,104550.0,0.54339611]
[1750243500888,0.07022875,104560.0,104550.0,0.55793696]
[1750243501102,0.07022875,104560.0,104550.0,0.85172705]
[1750243501346,0.07022875,104560.0,104550.0,0.66291816]
[1750243501783,0.06722875,104560.0,104550.0,0.66091816]
[1750243502236,0.06822875,104560.0,104550.0,0.66791816]
[1750243502463,0.06822875,104560.0,104550.0,0.43050596]
[1750243502680,0.06822875,104560.0,104550.0,0.63486596]
[1750243503120,0.06822875,104560.0,104550.0,0.63786596]
[1750243503339,0.07062245,104560.0,104550.0,0.63786596]
[1750243504670,0.07057445,104560.0,104550.0,0.63786596]
[1750243506299,0.07057445,104560.0,104550.0,0.60913696]
[1750243506549,0.28811234,104560.0,104550.0,0.60913696]
[1750243506776,0.06818075,104560.0,104550.0,0.60913696]
[1750243507423,0.07057445,104560.0,104550.0,0.60913696]
[1750243507656,0.07057445,104560.0,104550.0,0.63786496]
[1750243507888,0.06805446,104570.0,104560.0,0.21996828]
[1750243508110,0.07044816,104570.0,104560.0,0.37921004]
[1750243508337,0.23137521,104580.0,104570.0,0.28364725]
[1750243508547,0.22898151,104580.0,104570.0,0.54092901]
[1750243509416,0.03275,104590.0,104580.0,0.21992621]
[1750243509417,5e-05,104590.0,104580.0,0.21992621]
[1750243509640,0.21998159,104590.0,104580.0,0.37826797]
[1750243509860,0.21758789,104590.0,104580.0,0.37826797]
[1750243511793,0.21858789,104590.0,104580.0,0.37926797]
[1750243512004,0.22058789,104590.0,104580.0,0.37926797]
[1750243512634,0.21758789,104590.0,104580.0,0.37826797]
[1750243512846,0.21758789,104590.0,104580.0,0.38026797]
[1750243513067,0.21858789,104590.0,104580.0,0.38026797]
[1750243513906,0.22972924,104590.0,104580.0,0.38026797]
[1750243514112,0.28655158,104590.0,104580.0,0.38026797]
[1750243515032,0.02627544,104590.0,104580.0,0.38026797]
[1750243515212,0.02866914,104590.0,104580.0,0.38026797]
[1750243515710,0.02866914,104590.0,104580.0,0.54126797]
[1750243518075,0.02866914,104590.0,104580.0,0.54122797]
[1750243527492,0.01752779,104590.0,104580.0,0.31816797]
[1750243527718,0.3401594,104590.0,104580.0,0.47908797]
[1750243527940,0.3377657,104590.0,104580.0,0.47908797]
[1750243528379,0.35688661,104590.0,104580.0,0.47908797]
[1750243528594,0.70644747,104590.0,104580.0,0.47908797]
[1750243528800,0.69688661,104590.0,104580.0,0.47908797]
[1750243529013,0.70644738,104590.0,104580.0,0.47908797]
[1750243529227,0.71600824,104590.0,104580.0,0.47908797]
[1750243529476,0.70644747,104590.0,104580.0,0.47908797]
[1750243529904,0.46521463,104590.0,104580.0,0.47908797]
[1750243530116,0.63319821,104590.0,104580.0,0.47908797]
[1750243530322,0.66304672,104590.0,104580.0,0.47908797]
[1750243530552,0.66304663,104590.0,104580.0,0.47908797]
[1750243531196,0.66304663,104590.0,104580.0,0.31816797]
[1750243531410,0.67260731,104590.0,104580.0,0.47908797]
[1750243531616,0.66304663,104590.0,104580.0,0.47908797]
[1750243531802,0.74943283,104590.0,104580.0,0.47908797]
[1750243532215,0.7589936,104590.0,104580.0,0.47908797]
[1750243532635,0.76855456,104590.0,104580.0,0.47908797]
[1750243532846,0.7589936,104590.0,104580.0,0.47908797]
[1750243533058,0.76855456,104590.0,104580.0,0.47908797]
[1750243533288,0.97653149,104590.0,104580.0,0.47908797]
[1750243533505,0.96697072,104590.0,104580.0,0.47908797]
[1750243533712,0.97653158,104590.0,104580.0,0.47908797]
[1750243533925,1.15819486,104590.0,104580.0,0.002]
[1750243534151,1.14863427,104590.0,104580.0,0.35416115]
[1750243534380,1.17145159,104590.0,104580.0,0.36372311]
[1750243535034,1.17145159,104590.0,104580.0,0.38284676]
[1750243535461,1.16189073,104590.0,104580.0,0.37328498]
[1750243535670,1.16189073,104590.0,104580.0,0.21236498]
[1750243535882,1.16189073,104590.0,104580.0,0.37328498]
[1750243536074,1.13907341,104590.0,104580.0,0.37328498]
[1750243536308,1.13907341,104590.0,104580.0,0.38284676]
[1750243537123,1.13907341,104590.0,104580.0,0.39240845]
[1750243537556,1.05268721,104590.0,104580.0,0.40197005]
[1750243537974,1.05268721,104590.0,104580.0,0.39240845]
[1750243539235,1.05268721,104590.0,104580.0,0.40197005]
[1750243539443,0.86146352,104590.0,104580.0,0.4019695]
[1750243540074,0.35172742,104590.0,104580.0,0.49821126]
[1750243540290,0.35172742,104590.0,104580.0,0.56051126]
[1750243540498,0.56926531,104590.0,104580.0,0.56051126]
[1750243545281,0.55853789,104590.0,104580.0,0.56051126]
[1750243545492,0.001,104590.0,104580.0,0.56051126]
[1750243545939,0.3433937,104590.0,104580.0,0.60379126]
[1750243546192,0.341,104590.0,104580.0,0.60379126]
[1750243546822,0.341,104590.0,104580.0,0.61833211]
[1750243547882,0.001,104590.0,104580.0,0.61833211]
[1750243548531,0.0033937,104590.0,104580.0,0.61833211]
[1750243549151,0.001,104590.0,104580.0,0.83587]
[1750243549361,0.0033937,104590.0,104580.0,0.83587]
[1750243549775,0.0033937,104590.0,104580.0,0.61833211]
[1750243550480,0.0033937,104590.0,104580.0,0.41413211]
[1750243550658,0.0033937,104590.0,104580.0,0.61825211]
[1750243551962,0.001,104590.0,104580.0,0.61825211]
[1750243552453,0.001,104590.0,104580.0,0.83579]
[1750243552886,0.21853789,104590.0,104580.0,0.41413211]
[1750243553100,0.001,104590.0,104580.0,0.61817211]
[1750243553314,0.0033937,104590.0,104580.0,0.61817211]
[1750243554207,0.001,104590.0,104580.0,0.61817211]
[1750243554648,0.001,104590.0,104580.0,0.83571]
[1750243555331,0.001,104590.0,104580.0,0.61817211]
[1750243555977,0.0033937,104590.0,104580.0,0.61817211]
[1750243556698,0.001,104590.0,104580.0,0.61817211]
[1750243557538,0.001,104590.0,104580.0,0.41413211]
[1750243557750,0.001,104590.0,104580.0,0.61817211]
[1750243558593,0.001,104590.0,104580.0,0.41413211]
[1750243558804,0.001,104590.0,104580.0,0.61817211]
[1750243559230,0.0033937,104590.0,104580.0,0.61817211]
[1750243562397,0.0033937,104590.0,104580.0,0.41413211]
[1750243562603,0.0033937,104590.0,104580.0,0.61813211]
[1750243563015,0.001,104590.0,104580.0,0.61813211]
[1750243563232,0.0033937,104590.0,104580.0,0.61813211]
[1750243563441,0.001,104590.0,104580.0,0.61813211]